lending/lending_fUSD_20250131
["ID","MTS","AMOUNT","RATE_DAILY","PERIOD"]
[351056828,1738311057616,-500.0,0.00019315,7]
[351056829,1738311057626,-1271.0,0.00019323,2]
[351056830,1738311057635,-2021.0,0.00019323,2]
[351056831,1738311057644,-568.0,0.00019323,2]
[351056832,1738311057655,-1867.0,0.00019323,2]
[351056833,1738311057664,-1263.0,0.00019323,2]
[351056834,1738311057674,-782.0,0.00019323,2]
[351056835,1738311057683,-911.125,0.00019323,2]
[351056836,1738311057693,-2952.0,0.00019323,2]
[351056837,1738311057702,-538.0,0.00019323,2]
[351056838,1738311057712,-1329.312,0.00019323,2]
[351056839,1738311057721,-150.449,0.00019323,2]
[351056840,1738311057731,-2177.64986017,0.00019335,2]
[351056841,1738311057742,-500.0,0.00019357,2]
[351056842,1738311057751,-500.0,0.00019373,2]
[351056843,1738311057761,-2331.4861252,0.0001938,2]
[351056844,1738311057770,-150.0,0.00019385,4]
[351056845,1738311057779,-1927.21890907,0.000194,2]
[351056846,1738311058120,-2850.0,0.000194,2]
[351056847,1738311058132,-402.09109093,0.000194,2]
[351056848,1738311058142,-150.0,0.00019419,4]
[351056849,1738311058151,-152.854291,0.00019427,2]
[351056850,1738311058161,-152.854291,0.00019427,2]
[351056851,1738311058170,-154.518137,0.00019427,2]
[351056852,1738311058179,-264.81929883,0.00019432,2]
[351056853,1738311058189,-2177.64986017,0.00019442,2]
[351056854,1738311058198,-500.0,0.0001945,7]
[351056855,1738311058208,-914.17,0.00019451,3]
[351056856,1738311058217,-914.17,0.00019451,3]
[351056857,1738311058227,-914.17,0.00019451,3]
[351056858,1738311058237,-3262.26,0.00019451,3]
[351056859,1738311058247,-3262.26,0.00019451,3]
[351056860,1738311058257,-3262.26,0.00019451,3]
[351056861,1738311058266,-500.0,0.00019452,7]
[351056862,1738311058275,-500.0,0.00019452,3]
[351056863,1738311058285,-500.0,0.00019452,3]
[351056864,1738311058295,-500.0,0.00019452,3]
[351056865,1738311058305,-500.0,0.00019452,3]
[351056866,1738311058314,-500.0,0.00019452,3]
[351056867,1738311058324,-500.0,0.00019452,3]
[351056868,1738311058334,-500.0,0.00019452,3]
[351056869,1738311058343,-143.95605598,0.00019452,3]
[351056870,1738311058417,-356.04394402,0.00019452,3]
[351056871,1738311058427,-500.0,0.00019452,3]
[351056872,1738311058436,-500.0,0.00019452,3]
[351056873,1738311058445,-500.0,0.00019452,3]
[351056874,1738311058455,-740.76,0.00019452,3]
[351056875,1738311058465,-906.12,0.00019452,3]
[351056876,1738311058474,-500.0,0.00019452,3]
[351056877,1738311058484,-500.0,0.00019452,3]
[351056878,1738311058496,-505.85109345,0.00019452,3]
[351056879,1738311058511,-18.66890655,0.00019452,3]
[351056880,1738311058521,-500.0,0.00019452,3]
[351056881,1738311058531,-500.0,0.00019452,3]
[351056882,1738311058540,-478.50878857,0.00019452,3]
[351056883,1738311058550,-738.27,0.00019452,3]
[351056884,1738311058559,-500.0,0.00019452,3]
[351056885,1738311058569,-500.0,0.00019452,3]
[351056886,1738311058578,-500.0,0.00019452,3]
[351056887,1738311058587,-500.0,0.00019452,3]
[351056888,1738311058596,-314.09575895,0.00019452,3]
[351056889,1738311058606,-500.0,0.00019452,3]
[351056890,1738311058614,-500.0,0.00019452,3]
[351056891,1738311058623,-500.0,0.00019452,3]
[351056892,1738311058633,-500.0,0.00019452,3]
[351056893,1738311058642,-500.0,0.00019452,3]
[351056894,1738311058651,-500.0,0.00019452,3]
[351056895,1738311058661,-217.65654553,0.00019452,3]
[351056896,1738311058690,-158.36522806,0.00019278,2]
[351056897,1738311058699,-282.34345447,0.00019452,3]
[351056898,1738311058707,-885.61,0.00019452,3]
[351056899,1738311058717,-500.0,0.00019452,3]
[351056900,1738311058726,-500.0,0.00019452,3]
[351056901,1738311058735,-500.0,0.00019452,3]
[351056902,1738311058745,-500.0,0.00019452,3]
[351056903,1738311058754,-153.436237,0.00019452,3]
[351056904,1738311058762,-500.0,0.00019452,3]
[351056905,1738311058772,-2911.49558047,0.00019452,3]
[351056906,1738311058802,-88.25362053,0.00019452,3]
[351056907,1738311058811,-54.98177813,0.00019452,3]
[351056908,1738311058826,-445.01822187,0.00019452,3]
[351056909,1738311058836,-513.48,0.00019452,3]
[351056910,1738311058845,-500.0,0.00019452,3]
[351056911,1738311058855,-500.0,0.00019452,3]
[351056912,1738311058864,-500.0,0.00019452,3]
[351056913,1738311058873,-500.0,0.00019452,3]
[351056914,1738311058882,-500.0,0.00019452,3]
[351056915,1738311058892,-500.0,0.00019452,3]
[351056916,1738311058901,-500.0,0.00019452,3]
[351056917,1738311058910,-500.0,0.00019452,3]
[351056918,1738311058920,-500.0,0.00019452,3]
[351056919,1738311058932,-500.0,0.00019452,3]
[351056920,1738311058941,-1510.55,0.00019452,3]
[351056921,1738311058950,-592.6,0.00019452,3]
[351056922,1738311058959,-1040.92,0.00019452,3]
[351056923,1738311058969,-500.0,0.00019452,3]
[351056924,1738311058978,-201.90273976,0.00019452,3]
[351056925,1738311058992,-848.05293244,0.00019452,3]
[351056927,1738311668836,773.4571821,0.00021,120]
[351056928,1738311937096,275.16771606,8e-05,2]
[351056933,1738312109677,375.19028471,7.888e-05,2]
[351056940,1738312124568,6973.24548295,8e-05,2]
[351056943,1738312126163,8107.1515935,8e-05,2]
[351056944,1738312126188,8905.91913963,8e-05,2]
[351056947,1738312145821,167.53,8.797e-05,2]
[351056970,1738312232198,-300.0,9.999e-05,2]
[351056971,1738312232211,-150.0,9.999e-05,2]
[351056972,1738312232224,-1435.24001276,0.0001,2]
[351056973,1738312232366,-1707.91260154,0.0001,2]
[351056974,1738312232384,-819.31245215,0.0001,2]
[351056975,1738312232400,-799.51080008,0.0001,2]
[351056976,1738312232526,-228268.16789669,0.0001,2]
[351056977,1738312232544,-8588.43888594,0.0001,2]
[351056978,1738312232578,-1580.677267,0.0001,2]
[351056979,1738312232592,-752.76793986,0.0001,2]
[351056980,1738312232605,-300.0,0.0001,2]
[351057021,1738312238032,-26385.70571158,0.0001,2]
[351057022,1738312238041,-367.96,0.00010137,2]
[351057023,1738312238050,-1704.24,0.00010944,2]
[351057024,1738312238060,-167.53,0.00010996,2]
[351057025,1738312238070,-420.0,0.00010999,2]
[351057026,1738312238080,-150.0,0.00011,2]
[351057027,1738312238090,-2057.82,0.00011124,2]
[351057028,1738312238100,-150.0,0.00011151,2]
[351057029,1738312238110,-700.0,0.000114,4]
[351057030,1738312238120,-782.69,0.00011463,2]
[351057031,1738312238129,-1400.0,0.000115,4]
[351057032,1738312238139,-2200.0,0.000116,4]
[351057033,1738312238149,-2900.0,0.000117,4]
[351057034,1738312238158,-3600.0,0.000118,4]
[351057035,1738312238168,-181.05782633,0.00011824,2]
[351057036,1738312238177,-700.0,0.000119,4]
[351057037,1738312238187,-2388.88247266,0.000119,2]
[351057038,1738312238203,-1197.6437107,0.000119,2]
[351057039,1738312238212,-3586.52618336,0.00011906,2]
[351057040,1738312238221,-1567.65286363,0.00011912,2]
[351057041,1738312238232,-2018.87331973,0.00011912,2]
[351057042,1738312238242,-3586.52618336,0.00011918,2]
[351057043,1738312238252,-273.80747489,0.00011924,2]
[351057044,1738312238268,-3312.71870847,0.00011924,2]
[351057045,1738312238279,-433.25643629,0.0001193,2]
[351057046,1738312238290,-2078.65722464,0.0001193,2]
[351057133,1738312240187,-1074.61252243,0.0001193,2]
[351057134,1738312240197,-3586.52618336,0.00011936,2]
[351057135,1738312240207,-3586.52618336,0.00011942,2]
[351057136,1738312240216,-3314.8325233,0.00011948,2]
[351057137,1738312240242,-271.69366006,0.00011948,2]
[351057138,1738312240251,-311.82029409,0.00011949,2]
[351057139,1738312240261,-303.92321235,0.00011954,2]
[351057140,1738312240403,-335.27120302,0.00011954,2]
[351057141,1738312240601,-2947.33176799,0.00011954,2]
[351057142,1738312240610,-500.0,0.00011973,2]
[351057144,1738312240620,-300.0,0.00011999,2]
[351057145,1738312240631,-539.01838268,0.00011999,2]
[351057146,1738312240640,-8679.02388096,0.00011999,2]
[351057147,1738312240650,-1977.83602453,0.00011999,2]
[351057148,1738312240660,-403.22182466,0.00011999,2]
[351057149,1738312240670,-225.3174484,0.00012,2]
[351057151,1738312240680,-68378.414687,0.00012,2]
[351057211,1738312243208,-174.28,0.00010137,2]
[351057212,1738312243218,-312213.94951493,0.00012,2]
[351057213,1738312243230,-28386.89999944,0.00012,2]
[351057214,1738312243241,-4716.33561708,0.00012,2]
[351057215,1738312243321,-112.20958703,0.00012,2]
[351057216,1738312243333,-2949.75,0.00012,2]
[351057217,1738312243370,-1170.84046387,0.00012,2]
[351057218,1738312243427,-902.53784276,0.00012,2]
[351057219,1738312243439,-30126.45635373,0.00012,2]
[351057247,1738312246186,-815951.41740198,0.00012,2]
[351057248,1738312246196,-5029862.75620784,0.00012,2]
[351057249,1738312246649,-751.64439063,0.00012,2]
[351057250,1738312246661,-1747.85,0.00012,2]
[351057251,1738312450896,392.0,0.0002167,120]
[351057252,1738313065217,167.53,9.214e-05,2]
[351057254,1738313124638,-262.85,0.00010137,2]
[351057257,1738313169155,-300.0,0.00011485,2]
[351057258,1738313169194,-23900.0,0.00011486,2]
[351057259,1738313169228,-211.82729073,0.00011488,2]
[351057260,1738313169264,-939.54,0.00011588,2]
[351057261,1738313169298,-397.54518558,0.00011617,2]
[351057262,1738313169333,-179.74,0.00011664,2]
[351057263,1738313169367,-150.0,0.00011671,2]
[351057264,1738313169400,-179.74,0.00011693,2]
[351057265,1738313169433,-179.74,0.00011722,2]
[351057266,1738313169469,-1117.176,0.0001176,2]
[351057267,1738313169502,-164.091,0.0001176,2]
[351057268,1738313169536,-13339.0,0.00011761,2]
[351057269,1738313169569,-1980.77,0.00011768,2]
[351057270,1738313169605,-471.28,0.00011873,2]
[351057271,1738313169644,-150.0,0.00011899,2]
[351057272,1738313169678,-2699.40650202,0.000119,2]
[351057273,1738313169712,-534.469773,0.000119,2]
[351057274,1738313169745,-178.30890936,0.00011949,2]
[351057275,1738313169778,-174.26246126,0.00011949,2]
[351057276,1738313169811,-500.0,0.00011973,2]
[351057277,1738313169842,-502.06085629,0.00011973,2]
[351057278,1738313169879,-500.51639644,0.00011973,2]
[351057279,1738313169913,-500.0,0.00011973,2]
[351057280,1738313171001,-371624.13625432,0.00012,2]
[351057281,1738313180055,-100000.0,0.00012,2]
[351057282,1738313184548,97534.5428179,0.00021663,120]
[351057283,1738313184576,113695.39214799,0.00021663,120]
[351057284,1738313356168,-444.55376708,0.000119,2]
[351057285,1738313356690,-181.05782633,0.000119,2]
[351057286,1738313356731,-300.0,0.000119,4]
[351057287,1738313356765,-150.0,0.000119,2]
[351057288,1738313356797,-202.56043897,0.00011973,2]
[351057289,1738313356830,-5137.31145408,0.00011999,2]
[351057290,1738313356862,-150.0,0.00011999,2]
[351057291,1738313356894,-300.0,0.00011999,2]
[351057292,1738313357130,-86269.03302708,0.00012,2]
[351057293,1738313382741,-3000.0,0.0001188,2]
[351057294,1738313382794,-94000.0,0.00012,2]
[351057311,1738313432358,-2429.46585189,0.000119,2]
[351057312,1738313432367,-2686.46229044,0.00012,2]
[351057313,1738313432411,-450.653,0.00012,2]
[351057314,1738313432464,-28355.2571958,0.00012,2]
[351057315,1738313432517,-1189.367004,0.00012,2]
[351057316,1738313432573,-47617.29616952,0.00012,2]
[351057317,1738313432584,-53248.2620359,0.00012,2]
[351057318,1738313432732,-36123.70656133,0.00012,2]
[351057411,1738313438160,-179.22691947,0.000119,2]
[351057412,1738313438170,-130527.71672849,0.00012,2]
[351057413,1738313438213,-1163.9158237,0.00012,2]
[351057414,1738313438267,-30376.99819624,0.00012,2]
[351057415,1738313438279,-9804.37334659,0.00012,2]
[351057416,1738313438336,-3311.16323738,0.00012,2]
[351057417,1738313438347,-345.3504235,0.00012,2]
[351057418,1738313438358,-2631.39451276,0.00012,2]
[351057419,1738313438477,-2000.942007,0.00012,2]
[351057609,1738313440949,-625.93264284,0.00012,2]
[351057610,1738313440994,-6351.73916924,0.00012,2]
[351057611,1738313441117,-15241.25040426,0.00012,2]
[351057612,1738313441132,-472.89311082,0.00012,2]
[351057613,1738313441144,-1301.2,0.00012,2]
[351057614,1738313441155,-649.25,0.00012,2]
[351057615,1738313441166,-1391.24715588,0.00012,2]
[351057623,1738313443602,-43495.3138612,0.00012,2]
[351057624,1738313443614,-4529.08132511,0.00012,2]
[351057625,1738313443625,-157151.81387374,0.00012,2]
[351057626,1738313443635,-376.76,0.00012,2]
[351057627,1738313443644,-381.41,0.00012,2]
[351057628,1738313443653,-373.46,0.00012,2]
[351057629,1738313443663,-368.78,0.00012,2]
[351057630,1738313443672,-3000.0,0.00012,2]
[351057631,1738313443681,-812.0,0.00012,2]
[351057632,1738313443691,-378.76,0.00012,2]
[351057633,1738313443700,-150.0,0.00012024,2]
[351057634,1738313443709,-3595.2498844,0.00012049,2]
[351057635,1738313443720,-941.91,0.00012065,2]
[351057636,1738313443732,-397.54518558,0.00012165,2]
[351057638,1738313443741,-444.55376706,0.00012743,2]
[351057639,1738313443750,-2429.46585181,0.00012743,2]
[351057640,1738313443760,-782.69,0.00012896,2]
[351057641,1738313443771,-1000.0,0.00012919,2]
[351057642,1738313443779,-150.0,0.0001297,2]
[351057643,1738313443788,-550.0,0.00013,2]
[351057645,1738313443799,-255.0,0.00013079,2]
[351057647,1738313443808,-150.0,0.0001309,2]
[351057649,1738313443818,-150.0,0.000132,2]
[351057651,1738313443827,-1147.34,0.00013285,2]
[351057653,1738313443836,-174.26246121,0.00013308,2]
[351057655,1738313443845,-471.28,0.00013358,2]
[351057657,1738313443854,-500.0,0.00013383,2]
[351057659,1738313443864,-13894.87,0.00013468,2]
[351057661,1738313443873,-168.7,0.00013519,2]
[351057663,1738313443882,-444.55376706,0.00013586,2]
[351057665,1738313443892,-2429.46585181,0.00013586,2]
[351057667,1738313443901,-22292.14,0.00013699,2]
[351057669,1738313443910,-252.89,0.00013699,2]
[351057671,1738313443919,-300.0,0.00013699,2]
[351057673,1738313443928,-2042.09,0.00013739,2]
[351057675,1738313443937,-4179.29,0.0001389,2]
[351057677,1738313443946,-1500.0,0.00013997,2]
[351057679,1738313443955,-345.0,0.00014255,2]
[351057681,1738313443964,-941.91,0.00014329,2]
[351057683,1738313443974,-782.69,0.00014329,2]
[351057685,1738313443983,-2042.09,0.00014425,2]
[351057687,1738313443992,-444.55376706,0.0001443,2]
[351057689,1738313444001,-1000.0,0.00014534,2]
[351057691,1738313444010,-174.26246121,0.00014666,2]
[351057693,1738313444019,-471.28,0.00014842,2]
[351057695,1738313444028,-2207.6599,0.00015,10]
[351057697,1738313444037,-13501.27977824,0.00015,2]
[351057699,1738313444047,-14905.5500265,0.00015,2]
[351057700,1738313444056,-25232.3836046,0.00015,2]
[351057702,1738313444066,-262.5,0.00015068,2]
[351057704,1738313444075,-2042.09,0.00015112,2]
[351057707,1738313444086,-444.55376706,0.00015273,2]
[351057709,1738313444096,-782.69,0.00015762,2]
[351057710,1738313444105,-2042.09,0.00015799,2]
[351057711,1738313444114,-1371.0,0.000159,2]
[351057712,1738313444125,-178.30890936,0.00015925,2]
[351057713,1738313444135,-19405.77665823,0.00016,2]
[351057714,1738313444153,-55037.2419802,0.00016,2]
[351057715,1738313444162,-174.26246121,0.00016025,2]
[351057716,1738313444172,-503.0,0.00016082,2]
[351057717,1738313444182,-503.0,0.0001611,2]
[351057718,1738313444193,-444.55376706,0.00016116,2]
[351057719,1738313444203,-1000.0,0.00016149,2]
[351057720,1738313444214,-250.0,0.00016227,2]
[351057721,1738313444224,-471.28,0.00016326,2]
[351057722,1738313444234,-1980.77,0.00016476,2]
[351057723,1738313444244,-2042.09,0.00016486,2]
[351057724,1738313444253,-941.91,0.00016592,2]
[351057725,1738313444263,-5559.0,0.000166,2]
[351057726,1738313444273,-154.6,0.00016658,30]
[351057727,1738313444282,-1378.0,0.00016681,2]
[351057728,1738313444291,-17758.88969621,0.000168,2]
[351057729,1738313444301,-367.96,0.00016813,2]
[351057730,1738313444310,-262.85,0.00016813,2]
[351057731,1738313444320,-444.55376706,0.00016959,2]
[351057732,1738313444330,-5558.0,0.00017,3]
[351057733,1738313444341,-3000.0,0.00017,2]
[351057734,1738313444350,-782.69,0.00017195,2]
[351057735,1738313444359,-174.26246121,0.00017383,2]
[351057736,1738313444369,-167.65,0.0001743,2]
[351057737,1738313444379,-173.17,0.00017475,2]
[351057738,1738313444389,-5558.0,0.000175,5]
[351057739,1738313444398,-500.0,0.00017564,2]
[351057740,1738313444408,-500.0,0.00017564,2]
[351057741,1738313444417,-1000.0,0.00017764,2]
[351057742,1738313444426,-444.55376706,0.00017803,2]
[351057743,1738313444435,-357.85616503,0.00017808,2]
[351057744,1738313444445,-471.28,0.0001781,2]
[351057745,1738313444455,-19235.06,0.00018,2]
[351057746,1738313444464,-708.08369941,0.0001812,2]
[351057747,1738313444473,-152.0,0.0001832,3]
[351057748,1738313444483,-50000.0,0.000185,2]
[351057749,1738313444492,-166.01737227,0.000185,2]
[351057750,1738313444502,-600.0,0.000186,6]
[351057751,1738313444511,-879.0,0.0001863,2]
[351057752,1738313444520,-444.55376706,0.00018646,2]
[351057753,1738313444530,-500.0,0.0001866,2]
[351057754,1738313444539,-1273.741,0.00018667,2]
[351057755,1738313444549,-805.216,0.00018667,2]
[351057756,1738313444560,-357.999,0.00018667,2]
[351057757,1738313444570,-568.0,0.00018667,2]
[351057758,1738313444579,-1863.351,0.00018667,2]
[351057759,1738313444590,-1263.0,0.00018667,2]
[351057760,1738313444599,-2952.0,0.00018667,2]
[351057761,1738313444608,-907.0,0.00018667,2]
[351057762,1738313444618,-782.0,0.00018667,2]
[351057763,1738313444629,-150.0,0.00018667,2]
[351057764,1738313444638,-538.0,0.00018667,2]
[351057765,1738313444649,-250.0,0.00018667,2]
[351057766,1738313444658,-150.0,0.00018667,2]
[351057767,1738313444668,-179.03,0.00018667,2]
[351057768,1738313444677,-169.0,0.00018667,2]
[351057769,1738313444687,-1005.0,0.00018667,2]
[351057770,1738313444697,-161.092,0.00018667,2]
[351057771,1738313444707,-3908.0,0.00018667,2]
[351057772,1738313444718,-150.0,0.00018667,2]
[351057773,1738313444731,-1110.771,0.00018667,2]
[351057774,1738313444742,-278.931,0.00018667,2]
[351057775,1738313444752,-9787.85144395,0.0001868,2]
[351057776,1738313444763,-900.0,0.000187,6]
[351057777,1738313444985,-174.26246121,0.00018742,2]
[351057778,1738313444995,-1200.0,0.000188,6]
[351057779,1738313445004,-941.91,0.00018856,2]
[351057780,1738313445014,-500.0,0.00018873,2]
[351057781,1738313445025,-500.81042457,0.00018873,2]
[351057782,1738313445034,-6869.8022744,0.0001888,2]
[351057783,1738313445045,-157.98806319,0.0001889,2]
[351057784,1738313445055,-924.11,0.00018899,2]
[351057785,1738313445065,-579715.68629256,0.000189,2]
[351057795,1738313446307,-1066.30528595,0.0001443,2]
[351057796,1738313446320,-276.10057,0.0001443,2]
[351057797,1738313446361,-1087.05999586,0.0001443,2]
[351057798,1738313446371,-200.93,0.00018667,2]
[351057799,1738313446382,-154.646,0.00018667,2]
[351057800,1738313446392,-460507.52909962,0.000189,2]
[351057801,1738313446402,-5236.86,0.000189,2]
[351057802,1738313446411,-163.0452958,0.000189,2]
[351057803,1738313446420,-1500.0,0.000189,6]
[351057804,1738313446430,-163.04529575,0.00018921,2]
[351057805,1738313446440,-500.0,0.00018972,2]
[351057806,1738313446449,-16178.25960031,0.00019,2]
[351057807,1738313446460,-152.0,0.0001903,4]
[351057808,1738313446469,-1000.0,0.00019034,2]
[351057809,1738313446478,-924.11,0.00019036,2]
[351057810,1738313446488,-163.04529575,0.00019042,2]
[351057811,1738313446497,-4030.3843425,0.00019053,2]
[351057812,1738313446507,-265.08472417,0.0001907,3]
[351057813,1738313446516,-500.0,0.00019072,2]
[351057814,1738313446526,-4074.39700703,0.00019073,3]
[351057815,1738313446539,-1252.9209295,0.00019073,3]
[351057816,1738313446549,-1693.6298705,0.00019075,3]
[351057817,1738313446560,-434.760005,0.00019075,3]
[351057818,1738313446580,-1558.30887,0.00019075,3]
[351057819,1738313446597,-7119.57569097,0.00019075,3]
[351057820,1738313446608,-200.0,0.00019085,3]
[351057821,1738313446618,-12180.75798952,0.00019088,3]
[351057822,1738313446633,-20886.1666,0.00019088,3]
[351057823,1738313446649,-288.211375,0.00019088,3]
[351057824,1738313446660,-1216.1,0.00019088,3]
[351057825,1738313446672,-6407.53500801,0.00019088,3]
[351057826,1738313446681,-1000.1716,0.00019099,2]
[351057827,1738313446691,-200.0,0.00019117,3]
[351057828,1738313446700,-265.08472417,0.00019117,3]
[351057829,1738313446710,-7758.70866782,0.0001912,3]
[351057830,1738313952336,205.17,0.00010137,2]
[351057832,1738314253195,1645.137901,0.00014011,14]
[351057833,1738314306844,6472.12140108,0.00014011,14]
[351057837,1738314631667,-550.0,0.00013,2]
[351057838,1738314631677,-150.0,0.00013413,2]
[351057839,1738314631688,-753.52,0.00013825,2]
[351057840,1738314631697,-150.0,0.00014201,2]
[351057841,1738314631706,-150.0,0.000143,2]
[351057842,1738314631716,-150.0,0.000143,2]
[351057843,1738314631726,-741.85741146,0.00015,2]
[351057844,1738314631735,-600.0,0.00015,2]
[351057845,1738314631744,-371.4,0.00015,2]
[351057846,1738314631754,-376.72,0.00015,2]
[351057847,1738314631764,-379.38,0.00015,2]
[351057848,1738314631776,-371.44,0.00015001,2]
[351057849,1738314631785,-371.3,0.00015001,2]
[351057850,1738314631794,-374.14,0.00015001,2]
[351057851,1738314631804,-369.88,0.00015001,2]
[351057852,1738314631814,-381.18,0.00015001,2]
[351057853,1738314631823,-379.38,0.00015001,2]
[351057854,1738314631833,-374.73,0.00015001,2]
[351057855,1738314631843,-381.25,0.00015002,2]
[351057856,1738314631853,-367.66,0.00015002,2]
[351057857,1738314631867,-372.48,0.00015003,2]
[351057858,1738314631875,-369.55,0.00015004,2]
[351057859,1738314631885,-367.67,0.00015006,2]
[351057860,1738314631894,-370.2,0.00015009,2]
[351057861,1738314631903,-372.84,0.00015012,2]
[351057862,1738314631913,-382.17,0.00015017,2]
[351057863,1738314631922,-373.12,0.00015024,2]
[351057864,1738314631931,-370.77,0.00015033,2]
[351057865,1738314631941,-368.73,0.00015047,2]
[351057866,1738314631950,-368.81,0.00015066,2]
[351057867,1738314631959,-381.23,0.00015092,2]
[351057868,1738314631969,-381.32,0.00015129,2]
[351057869,1738314631978,-376.6,0.00015181,2]
[351057870,1738314631988,-150.0,0.00015208,2]
[351057871,1738314631998,-285.91630059,0.00015256,2]
[351057872,1738314632009,-371.68,0.00015273,2]
[351057873,1738314632019,-372.66,0.00015273,2]
[351057874,1738314632029,-373.38,0.00015273,2]
[351057875,1738314632038,-372.42,0.00015273,2]
[351057876,1738314632048,-370.97,0.00015273,2]
[351057877,1738314632057,-375.45,0.00015273,2]
[351057878,1738314632066,-69.11172751,0.00015273,2]
[351057879,1738314632082,-308.72827249,0.00015273,2]
[351057880,1738314632091,-375.05,0.00015273,2]
[351057881,1738314632105,-379.15,0.00015273,2]
[351057882,1738314632117,-372.36,0.00015273,2]
[351057883,1738314632127,-381.31,0.00015273,2]
[351057884,1738314632136,-375.5,0.00015273,2]
[351057885,1738314632147,-381.68,0.00015273,2]
[351057886,1738314632156,-369.11,0.00015273,2]
[351057887,1738314632166,-835.99,0.00015613,2]
[351057888,1738314632176,-168.7,0.00015644,2]
[351057889,1738314632185,-679.56,0.00015763,2]
[351057890,1738314632195,-473.99,0.00015907,2]
[351057891,1738314632204,-1000.0,0.00015916,2]
[351057892,1738314632213,-250.0,0.00015994,2]
[351057893,1738314632222,-507.73620594,0.00016022,2]
[351057894,1738314632231,-1000.0,0.00016066,2]
[351057895,1738314632240,-753.52,0.00016089,2]
[351057898,1738314632249,-1697.91,0.00016096,2]
[351057901,1738314632258,-167.7,0.00016161,2]
[351057904,1738314632267,-497.89,0.00016162,2]
[351057906,1738314632276,-835.99,0.00016393,2]
[351057908,1738314632285,-163.52,0.00016424,2]
[351057909,1738314632294,-500.0,0.00016523,2]
[351057911,1738314632303,-154.6,0.00016658,30]
[351057913,1738314632312,-1000.0,0.00016876,2]
[351057915,1738314632321,-7807.22,0.00016934,2]
[351057918,1738314632331,-835.99,0.00017174,2]
[351057920,1738314632341,-150.0,0.00017365,2]
[351057921,1738314632350,-500.0,0.00017564,2]
[351057923,1738314632360,-500.0,0.00017564,2]
[351057925,1738314632375,-164.092,0.00017811,2]
[351057927,1738314632386,-1124.56,0.00017811,2]
[351057930,1738314632395,-1000.0,0.00017919,2]
[351057932,1738314632405,-835.99,0.00017955,2]
[351057934,1738314632414,-1000.0,0.00018075,2]
[351057936,1738314632424,-400.0,0.000181,2]
[351057937,1738314632433,-167.7,0.00018182,2]
[351057939,1738314632443,-170.08,0.00018216,2]
[351057941,1738314632452,-437.98,0.00018219,2]
[351057943,1738314632462,-200.0,0.000183,6]
[351057944,1738314632472,-753.52,0.00018353,2]
[351057945,1738314632481,-500.0,0.000184,6]
[351057946,1738314632490,-15703.0,0.00018436,2]
[351057947,1738314632500,-800.0,0.000185,6]
[351057948,1738314632510,-1100.0,0.000186,6]
[351057949,1738314632519,-500.0,0.0001866,2]
[351057950,1738314632529,-1300.0,0.000187,6]
[351057951,1738314632538,-835.99,0.00018735,2]
[351057952,1738314632547,-151.35627749,0.00018796,20]
[351057953,1738314632557,-1000.0,0.000188,2]
[351057954,1738314632566,-200.0,0.000188,6]
[351057955,1738314632576,-431.18147599,0.00018838,2]
[351057956,1738314632585,-1358.12732719,0.000189,2]
[351057957,1738314632594,-1000.0,0.000189,2]